Cogmind - Beta 10.2 @@@ ROGUE MODE // 2021.05.06 @ 14:57:34 Player: Teratos Result: Self-destructed Performance ------------- Evolutions (2) 1000 Regions Visited (5) 1000 Robots Destroyed (11) 55 Value Destroyed (228) 228 Prototype IDs (3) 60 Alien Tech Used (0) 0 Bonus (300) 300 TOTAL SCORE: 2643 Bonus ------- Aligned with FarCom 300 Cogmind --------- Core Integrity 469/550 Matter 300/300 Energy 265/265 System Corruption 2% Temperature Cool (0) Movement Rolling (110) Ox1 Location -8/Materials Parts ------- > --- POWER (1) -------- Improved Ion Engine > --- PROPULSION (4) --- Compact Wheel > --- UTILITY (4) ------ Improved Heat Sink Sensor Drone Bay (20/20) > --- WEAPON (2) ------- (None) > --- INVENTORY (4) ---- Light Ion Engine Skeleton Box Peak State ------------ > --- POWER ------------ Light Ion Engine > --- PROPULSION ------- Light Treads Light Treads > --- UTILITY ---------- Weapon Shielding Sensor Drone Bay > --- WEAPON ----------- YOLO Cannon > --- INVENTORY -------- (None) [Rating: 32] Favorites ----------- Power Light Ion Engine Engine Light Ion Engine Propulsion Light Treads Treads Light Treads Leg Aluminum Leg Wheel Compact Wheel Utility Weapon Shielding Device Sensor Drone Bay Storage Medium Storage Unit Protection Weapon Shielding Weapon Mining Claw Energy Gun EM Pulse Gun Energy Cannon Heavy Particle Cannon Ballistic Gun Assault Rifle Special Weapon Mining Laser Slashing Weapon Mining Claw Build | -11 -10 -10 -10 -9 -8 ------- Run | Scr Mat Min Exi Min Mat Slots Evolved 4 | . . . . . 4 Power . | . . . . . . Propulsion 2 | . . . . . 2 Utility 2 | . . . . . 2 Weapon . | . . . . . . Parts Attached 26 | 5 4 5 5 . 7 Power 3 | 1 . . . . 2 Engine 3 | 1 . . . . 2 Core . | . . . . . . Reactor . | . . . . . . Propulsion 5 | 2 . . . . 3 Treads 2 | 2 . . . . . Leg 1 | . . . . . 1 Wheel 2 | . . . . . 2 Hover . | . . . . . . Flight . | . . . . . . Utility 7 | . 2 1 2 . 2 Device 3 | . . 1 1 . 1 Storage 1 | . 1 . . . . Processor . | . . . . . . Hackware . | . . . . . . Protection 3 | . 1 . 1 . 1 Artifact . | . . . . . . Weapon 11 | 2 2 4 3 . . Energy Gun 1 | 1 . . . . . Energy Cannon 2 | . . 1 1 . . Ballistic Gun 2 | 1 . 1 . . . Ballistic Cannon . | . . . . . . Launcher . | . . . . . . Special Weapon 1 | . 1 . . . . Impact Weapon . | . . . . . . Slashing Weapon 5 | . 1 2 2 . . Piercing Weapon . | . . . . . . Special Melee Weapon . | . . . . . . Unidentified Prototypes 3 | . . 1 2 . . Parts Lost 9 | . . 1 . . 8 Power 1 | . . . . . 1 Propulsion 3 | . . . . . 3 Utility 2 | . . . . . 2 Weapon 3 | . . 1 . . 2 Highest Loss Streak 6 | . . 1 . . 6 Average Slot Usage (%) 89 | . 69 92 98 100 72 Engine 12 | . 14 14 14 14 6 Treads 25 | . 28 28 28 28 15 Wheel 1 | . . . . . 7 Device 12 | . . 13 14 14 12 Protection 12 | . 2 14 13 14 12 Special Weapon 1 | . 2 2 . . . Slashing Weapon 20 | . 6 16 27 28 17 Naked Turns . | . . . . . . Heaviest Build 30 | 7 15 26 22 22 30 Greatest Support 40 | 40 40 40 40 40 40 Greatest Overweight (x) 2 | . . . . . 2 Average Overweight (x) . | . . . . . . Largest Inventory Capacity 8 | 4 8 8 4 4 4 Average Capacity 4 | 4 4 4 4 4 4 Most Carried 2 | . . . 1 1 2 Average Carried . | . . . . 1 1 Final Capacity 8 | 4 8 4 4 4 4 Final Carried 2 | . . . 1 1 2 Class Distribution -------------------- 94% | Mutant 5% | Scavenger-Mutant Dominant Class ---------------- Mutant | -10/Materials Mutant | -10/Mines Mutant | -10/Exiles Mutant | -9/Mines Mutant | -8/Materials Resources | -11 -10 -10 -10 -9 -8 ----------- Run | Scr Mat Min Exi Min Mat Matter Collected 474 | 156 34 88 . . 196 Remotely . | . . . . . . Salvage Created 523 | . 113 11 . . 399 Parts 22 | . 7 3 . . 12 Haulers Intercepted . | . . . . . . Recyclers Shooed . | . . . . . . Parts Field Recycled . | . . . . . . Retrieved Matter . | . . . . . . Parts Self-Destructed . | . . . . . . Prevented . | . . . . . . Kills | -11 -10 -10 -10 -9 -8 ------- Run | Scr Mat Min Exi Min Mat Combat Hostiles Destroyed 5 | . . 1 . . 4 Melee 4 | . . . . . 4 Guns 1 | . . 1 . . . Classes Destroyed 6 | . 3 1 . . 2 Worker 2 | . 1 . . . 1 Recycler 3 | . 1 . . . 2 Watcher 1 | . 1 . . . . Swarmer 1 | . . 1 . . . Grunt 1 | . . . . . 1 Sentry 3 | . . . . . 3 Best Kill Streak 2 | . 2 1 . . 2 Combat Bots Only 1 | . . 1 . . 1 Max Kills in Single Turn 1 | . 1 1 . . 1 Gunslinging . | . . . . . . Exploded . | . . . . . . Melee 1 | . . . . . 1 Uniques/NPCs Destroyed . | . . . . . . Combat | -11 -10 -10 -10 -9 -8 -------- Run | Scr Mat Min Exi Min Mat Damage Taken 1032 | . . 240 . 7 785 Core 123 | . . 42 . . 81 Absorbed by Shields . | . . . . . . Core Remaining (%) 91 | 100 . . . 83 . Volleys Fired 8 | . 6 2 . . . Largest 2 | . 2 2 . . . Hottest 100 | . 60 100 . . . Shots Fired 15 | . 12 3 . . . Gun 13 | . 12 1 . . . Cannon 1 | . . 1 . . . Launcher . | . . . . . . Special 1 | . . 1 . . . Kinetic 7 | . 6 1 . . . Thermal 2 | . . 2 . . . Explosive . | . . . . . . Electromagnetic 6 | . 6 . . . . Robot Hit Streak 8 | . 5 8 . . . Robot Miss Streak 3 | . 3 . . . . Penetration Max . | . . . . . . Secondary Targets . | . . . . . . Shots Hit Robots 43 | . 6 7 . . 30 Core Hits 15 | . 5 1 . . 9 Critical Hits 2 | . . . . . 2 Critical Kills . | . . . . . . Critical Parts Destroyed 2 | . . . . . 2 Melee Attacks 44 | . . 8 . . 36 Impact . | . . . . . . Slashing 44 | . . 8 . . 36 Piercing . | . . . . . . Sneak Attacks 4 | . . 1 . . 3 Combat Hostiles . | . . . . . . Follow-up Attacks 3 | . . . . . 3 Damage Inflicted 1341 | . 106 223 . . 1012 Guns 116 | . 106 10 . . . Cannons 25 | . . 25 . . . Explosions . | . . . . . . Melee 1176 | . . 164 . . 1012 Ramming . | . . . . . . Kinetic 54 | . 44 10 . . . Thermal 49 | . . 49 . . . Explosive . | . . . . . . Electromagnetic 62 | . 62 . . . . Impact . | . . . . . . Slashing 1176 | . . 164 . . 1012 Piercing . | . . . . . . Highest Corruption 2 | . 1 1 1 1 2 Average Corruption 1 | . 1 1 1 1 2 Corruption Purged . | . . . . . . Effects 4 | . . . 2 2 . Message Errors 1 | . . . 1 . . Energy Discharges 1 | . . . 1 . . Data Loss (minor) 2 | . . . . 2 . Overload Shots . | . . . . . . Overflow Damage 183 | . . 55 . . 128 Projectiles . | . . . . . . Explosions . | . . . . . . Melee 183 | . . 55 . . 128 Knockbacks . | . . . . . . Impact . | . . . . . . Kinetic . | . . . . . . Secondary . | . . . . . . Self-Inflicted Damage . | . . . . . . Shots . | . . . . . . Rammed . | . . . . . . Targets Rammed . | . . . . . . Kicked . | . . . . . . Crushed . | . . . . . . Highest Temperature 54 | . . 54 . . . Average Temperature 22 | . . 22 . . . Received Heat Transfer 405 | . . 90 . . 315 Siege Activations . | . . . . . . Robots Corrupted . | . . . . . . Combat Hostiles . | . . . . . . Parts Fried . | . . . . . . Impact Corruptions . | . . . . . . Robots Melted . | . . . . . . Combat Hostiles . | . . . . . . Parts Melted . | . . . . . . Heat Transferred 87 | . . 87 . . . Parts Sabotaged . | . . . . . . Parts Stolen . | . . . . . . Parts Stripped . | . . . . . . Power Chain Reactions . | . . . . . . Missiles Intercepted . | . . . . . . Alert | -11 -10 -10 -10 -9 -8 ------- Run | Scr Mat Min Exi Min Mat Peak Influence 150 | . 34 48 . . 150 Initial 13 | . . 13 . . . Average 36 | . 24 22 . . 81 Maximum Alert Level . | . . . . . . Low Security (%) 100 | 100 100 100 . 100 100 Level 1 . | . . . . . . Level 2 . | . . . . . . Level 3 . | . . . . . . Level 4 . | . . . . . . Level 5 . | . . . . . . High Security . | . . . . . . Max Security . | . . . . . . Squads Dispatched . | . . . . . . Investigation . | . . . . . . Extermination . | . . . . . . Reinforcement . | . . . . . . Assault . | . . . . . . Garrison . | . . . . . . Intercept . | . . . . . . Construction Impeded . | . . . . . . Haulers Reinforced . | . . . . . . Stealth | -11 -10 -10 -10 -9 -8 --------- Run | Scr Mat Min Exi Min Mat Distress Signals . | . . . . . . Communications Jammed . | . . . . . . Distress Signals . | . . . . . . Times Spotted 20 | . 1 7 . 2 10 Peak Tracking Total 5 | . 1 3 . 4 5 Tactical Retreats 3 | . . 3 . . . Traps | -11 -10 -10 -10 -9 -8 ------- Run | Scr Mat Min Exi Min Mat Traps Triggered 1 | . . 1 . . . Indirectly . | . . . . . . Trap Hack Attempts . | . . . . . . Triggered . | . . . . . . Disarmed . | . . . . . . Reprogrammed . | . . . . . . Reused . | . . . . . . Traps Extracted . | . . . . . . Installed . | . . . . . . Triggered . | . . . . . . Machines | -11 -10 -10 -10 -9 -8 ---------- Run | Scr Mat Min Exi Min Mat Machines Disabled . | . . . . . . Max in Single Turn . | . . . . . . Machines Sabotaged . | . . . . . . Garrisons Compromised . | . . . . . . Overloaded Fab Kills . | . . . . . . Fab Network Shutdowns . | . . . . . . Hacking | -11 -10 -10 -10 -9 -8 --------- Run | Scr Mat Min Exi Min Mat Machines Accessed 3 | . 1 2 . . . Terminals 1 | . 1 . . . . Fabricators . | . . . . . . Repair Stations . | . . . . . . Recycling Units . | . . . . . . Scanalyzers . | . . . . . . Garrison Access . | . . . . . . Total Hacks 6 | . 4 2 . . . Successful 5 | . 3 2 . . . Failed 1 | . 1 . . . . Catastrophic . | . . . . . . Database Lockouts . | . . . . . . Manual 1 | . . . 1 . . Terminals 4 | . 4 . . . . Fabricators . | . . . . . . Repair Stations . | . . . . . . Recycling Units . | . . . . . . Scanalyzers . | . . . . . . Garrison Access . | . . . . . . Terminal Hacks 5 | . 3 2 . . . Record 2 | . 2 . . . . Open Door 2 | . . 2 . . . Alert Level 1 | . 1 . . . . Fabricator Hacks . | . . . . . . Repair Station Hacks . | . . . . . . Recycling Unit Hacks . | . . . . . . Scanalyzer . | . . . . . . Garrison Access Hacks . | . . . . . . Unauthorized Hacks . | . . . . . . Terminals . | . . . . . . Fabricators . | . . . . . . Repair Stations . | . . . . . . Recycling Units . | . . . . . . Scanalyzers . | . . . . . . Garrison Access . | . . . . . . Data Cores Recovered . | . . . . . . Used . | . . . . . . Hacking Detections 1 | . 1 . . . . Full Trace Events 1 | . 1 . . . . Feedback Events 1 | . 1 . . . . Corruption 1 | . 1 . . . . Feedback Blocked . | . . . . . . Robot Schematics Acquired . | . . . . . . Robots Built . | . . . . . . Matter . | . . . . . . Time . | . . . . . . Total Robot Build Rating . | . . . . . . Part Schematics Acquired . | . . . . . . Parts Built . | . . . . . . Matter . | . . . . . . Time . | . . . . . . Total Part Build Rating . | . . . . . . Parts Repaired . | . . . . . . Time . | . . . . . . Parts Recycled . | . . . . . . Recycled Matter . | . . . . . . Retrieved Matter . | . . . . . . Retrieved Components . | . . . . . . Parts Scanalyzed . | . . . . . . Part Schematics Acquired . | . . . . . . Parts Damaged . | . . . . . . Bothacking | -11 -10 -10 -10 -9 -8 ------------ Run | Scr Mat Min Exi Min Mat Used RIF Installer . | . . . . . . Robots Hacked . | . . . . . . Non-combat . | . . . . . . Combat . | . . . . . . Robot Hacks Applied . | . . . . . . Relay Couplers Released . | . . . . . . Robots Rewired . | . . . . . . Allies Hacked . | . . . . . . Hacks Repelled . | . . . . . . Allies | -11 -10 -10 -10 -9 -8 -------- Run | Scr Mat Min Exi Min Mat Total Allies . | . . . . . . Largest Group . | . . . . . . Highest-Rated Group . | . . . . . . Highest-Rated Ally . | . . . . . . Total Orders 4 | . . 4 . . . ROAM 1 | . . 1 . . . EXPLORE 1 | . . 1 . . . RETURN 2 | . . 2 . . . Ally Attacks . | . . . . . . Total Damage . | . . . . . . Kills . | . . . . . . Allies Corrupted . | . . . . . . Allies Melted . | . . . . . . Intel | -11 -10 -10 -10 -9 -8 ------- Run | Scr Mat Min Exi Min Mat Robot Analysis Total . | . . . . . . Derelict Logs Recovered 2 | . . 1 . 1 . Drone Launches 40 | . . 40 . . . Drone Recoveries 40 | . . 40 . . . Exploration | -11 -10 -10 -10 -9 -8 ------------- Run | Scr Mat Min Exi Min Mat Turns Passed 1743 | 48 110 614 626 50 295 Spaces Moved 954 | 28 54 323 385 32 132 Core 3 | 3 . . . . . Treads 861 | 25 54 323 385 32 42 Legs 13 | . . . . . 13 Wheels 77 | . . . . . 77 Hover . | . . . . . . Flight . | . . . . . . Fastest Speed 50 | 50 160 160 160 160 90 Average Speed 154 | 148 160 160 160 160 122 Slowest Speed 180 | 160 160 160 160 160 180 Overloaded Moves . | . . . . . . Propulsion Burnouts . | . . . . . . Robots Hopped . | . . . . . . Cave-ins Triggered . | . . . . . . Exploration Rate (%) 35 | 4 16 96 71 17 7 Regions Visited 5 Branch Regions 3 Pre-discovered Areas 2 | . . 1 . 1 . Known Exits Taken . | . . . . . . Unknown Exits Taken 5 | 1 1 1 1 1 . Scrap Searched 1 | . . 1 . . . Spaces Dug 1 | . . 1 . . . Terrain Destroyed 1 | . . 1 . . . Melee 1 | . . 1 . . . Projectile . | . . . . . . AOE . | . . . . . . Terrain Rammed . | . . . . . . Walls Destroyed . | . . . . . . Machines Disabled . | . . . . . . Actions | -11 -10 -10 -10 -9 -8 --------- Run | Scr Mat Min Exi Min Mat Total 1133 | 32 65 400 395 31 210 Wait 97 | . . 59 1 . 37 Move 949 | 27 53 322 384 31 132 Hop . | . . . . . . Pick Up . | . . . . . . Fast Attach 25 | 5 4 5 5 . 6 Attach . | . . . . . . Detach 1 | . . . 1 . . Swap 1 | . . . . . 1 Drop 11 | . 2 4 4 . 1 Fire 8 | . 6 2 . . . Melee 41 | . . 8 . . 33 Ram . | . . . . . . Kick . | . . . . . . Crush . | . . . . . . Escape Stasis . | . . . . . . Rewire . | . . . . . . Trap . | . . . . . . Miscellaneous . | . . . . . . Route ------- -11/Scrapyard -10/Materials -10/Mines (discovered 3 exits: *Mat x2 / *Exi) -10/Exiles (discovered 2 exits: [*Min x2]) -9/Mines -8/Materials History --------- Turn | Location | Event 3 | -11/Scrapyard | Discovered new exit (range 16) 49 | -11/Scrapyard | Entered Materials 123 | -10/Materials | Discovered new exit (range 7) 159 | -10/Materials | Entered Mines 176 | -10/Mines | Found the Drone Emporium 186 | -10/Mines | Found Prototype Device 186 | -10/Mines | Identified Sensor Drone Bay 302 | -10/Mines | Build established: Mutant 324 | -10/Mines | Discovered new exit (range 5) 360 | -10/Mines | Deemed a non-threat by the Exiles lab entrance 362 | -10/Mines | Discovered new exit (range 5) 412 | -10/Mines | Discovered new exit (range 3) 522 | -10/Mines | Learned location of Zion (-6) 587 | -10/Mines | Identified exit to Materials 622 | -10/Mines | Met a Derelict who couldn't figure out how to use a Trap Extractor 773 | -10/Mines | Entered Exiles 799 | -10/Exiles | Discovered new exit (range 14) 842 | -10/Exiles | Met 8R-AWN 865 | -10/Exiles | Met EX-HEX 929 | -10/Exiles | Met EX-DEC 1042 | -10/Exiles | Discovered new exit (range 11) 1138 | -10/Exiles | Met EX-BIN 1160 | -10/Exiles | Aligned with FarCom system 1162 | -10/Exiles | Given EX-Vault access code 1205 | -10/Exiles | Opened EX-Vault 1216 | -10/Exiles | Found Prototype Energy Cannon 1216 | -10/Exiles | Identified YOLO Cannon 1221 | -10/Exiles | Found Prototype Device 1221 | -10/Exiles | Identified Skeleton Box 1272 | -10/Exiles | Warned to stay clear of 0b10 Research branches 1280 | -10/Exiles | Exiles lab attacked by MAIN.C 1399 | -10/Exiles | Left Exiles lab with Skeleton Box 1399 | -10/Exiles | Entered Mines 1435 | -9/Mines | Discovered new exit (range 10) 1449 | -9/Mines | Entered Materials 1449 | -8/Materials | Evolved 4 slots: Propulsion x2, Utility x2 1744 | -8/Materials | Self-destructed Last Messages --------------- 01648_ Acquired Imp. Ion Engine. 01652_ K-01 Serf collects debris. 01654_ Acquired 20 matter. 01654_ K-01 Serf collects debris. 01673_ Lgt. Treads destroyed. 01681_ K-01 Serf collects debris. 01707_ Y-45 Defender destroyed. 01711_ K-01 Serf collects debris. 01714_ B-36 Bruiser suffers critical hit. 01714_ Destroyed Lgt. Treads. 01714_ Mining Claw follow-up attack on B-36 Bruiser. 01722_ B-36 Bruiser suffers critical hit. 01722_ Destroyed Lgt. Treads. 01728_ Lgt. Armor Plating destroyed. 01728_ Lgt. Treads destroyed. 01734_ Scythe destroyed. 01736_ Weapon Shielding destroyed. 01736_ Mining Claw destroyed. 01736_ System corrupted by crushing effect (+2). 01738_ Wheel destroyed. Map ----- +----------------------------------------------------+ | ?????????????????????????????????????? | | ?????????????????????????????????????? | | ?????????????????????????????????????? | | ?????????????????????????????????????? | | ?????????????????????????????????????? | | ?????????????????????????????????????? | | ?????????????????????????????????????? | | ?????????????????????????????????????? | | ?????????????????????????????????????? | | ?????????????????????????????????????? | | ?????????????????????????????????????? | | ?????????????????????????????????????? | | ?????????????????????????????????????? | | ?????????????????????????????????????? | | ?????????????? ????????????????????? | | ????????????# ????????????????????? | | ????????????# ???????#####????????? | | ????????????+ ???????# #????????? | | ????????????? ???????# #????????? | | ????????????? ???????# #????????? | | ?????????????# ???????# #????????? | | ?????????????# #??????# #????????? | | ?????????????# #??????# #????????? | | ?????????????# #??????#% #????????? | | ?????????????# #??????# ! #????????? | | ?????????????# #??????#@ #????????? | | ????????????## ##?????#[ #????????? | | ????######### #######%= #????????? | | ? #????????? | | ? ########## | | ? w% # # | | ????######### #######bgg# """ # | | ????????????#######?????# =# """ # | | ????????????????????????#u # """ # | | ????????????????????????# + # | | ????????????????????????# # """ # | | ????????????????????????#^^^# """ # | | ????????????????????????# # """ # | | ????????????????????????# # # | | ????????????????????????# ########## | | ????????????????????????# #????????? | | ????????????????????????# #????????? | | ???????????????????????? #????????? | | ???????????????????????? #????????? | | ???????????????????????? #????????? | | ???????????????????????######????????? | | ?????????????????????????????????????? | | ?????????????????????????????????????? | | ?????????????????????????????????????? | | ?????????????????????????????????????? | +----------------------------------------------------+ Best States ------------- Heat Dissipation 45 Energy Generation 12 Energy Capacity 265 Matter Stores 300 Matter Capacity 300 Sight Range 16 Terrain Scan Density 10 Armor Coverage 150 Weapon Shielding 33 Evasion (%) 42 Recoil Reduction 2 Item Schematics ----------------- None Robot Schematics ------------------ None Fabricated ------------ Nothing Alien Tech Used ----------------- None Achievements -------------- None Challenges ------------ None Game ------ Seed StructuralTerrabombProcessor Manual? 0 Play Time 00:19:21 Cumulative 53.5 hours Start 2021.05.06 @ 14:25:24 End 2021.05.06 @ 14:57:34 Sessions 1 Manual Loads 0 Difficulty Rogue Special Mode None Game No. 117 Rogue 117 Adventurer 0 Explorer 0 Win Type - Total 0 Types 0/0/0/0/0/0/0/0/0 Lore% 24 Gallery% 30 Achievement% 26 Wizard Run 0 Options --------- ASCII 0 Keyboard 0 Movement Numpad Keybinds 0 Fullscreen 1 Font 12/Smallcaps Map View 83x54 Tactical HUD 1 Map Filters NONE Filters NONE Steam 1 RUN: 616c8cd5-5e8f-45e9-a452-655e956b19d3